Cogmind - Beta 15 @@@ ROGUE MODE // 2025.09.16 @ 21:39:02 Player: cottonman132 Result: Destroyed by D-53 Grenadier with Mini Grenade Launcher Performance ------------- Evolutions (0) 0 Regions Visited (2) 400 Robots Destroyed (24) 120 Value Destroyed (354) 354 Prototype IDs (0) 0 Alien Tech Used (0) 0 Bonus (-152) -152 TOTAL SCORE: 722 Bonus ------- Friendly Fire -152 Cogmind --------- Core Integrity 0/250 Matter 295/300 Energy 100/100 System Corruption 0% Temperature Cool (0) Movement Walking (120) Location -10/Mines Parts ------- > --- POWER (1) -------- (None) > --- PROPULSION (2) --- Aluminum Leg Aluminum Leg > --- UTILITY (2) ------ Medium Storage Unit Seismic Detector > --- WEAPON (2) ------- Hammer > --- INVENTORY (10) --- Light Angular Momentum Engine Aluminum Leg Aluminum Leg Carbon-fiber Leg Large Storage Unit Weapon Shielding Peak State ------------ > --- POWER ------------ Light Ion Engine > --- PROPULSION ------- Aluminum Leg Aluminum Leg > --- UTILITY ---------- Medium Storage Unit Weapon Shielding > --- WEAPON ----------- Hammer > --- INVENTORY -------- Light Angular Momentum Engine Aluminum Leg Aluminum Leg Carbon-fiber Leg Large Storage Unit Seismic Detector [Rating: 7] Favorites ----------- Power Light Ion Engine Engine Light Ion Engine Propulsion Aluminum Leg Leg Aluminum Leg Wheel Compact Wheel Utility Medium Storage Unit Device Seismic Detector Storage Medium Storage Unit Protection Light Armor Plating Weapon Hammer Impact Weapon Hammer Build | -11 -10 -10 ------- Run | Yrd Mat Min Slots Evolved . | . . . Power . | . . . Propulsion . | . . . Utility . | . . . Weapon . | . . . Parts Attached 15 | 4 9 2 Power 2 | 1 1 . Engine 2 | 1 1 . Core . | . . . Reactor . | . . . Propulsion 5 | 2 2 1 Treads . | . . . Leg 3 | . 2 1 Wheel 2 | 2 . . Hover . | . . . Flight . | . . . Utility 7 | 1 5 1 Device 1 | . 1 . Storage 2 | 1 1 . Processor . | . . . Hackware . | . . . Protection 4 | . 3 1 Artifact . | . . . Weapon 1 | . 1 . Energy Gun . | . . . Energy Cannon . | . . . Ballistic Gun . | . . . Ballistic Cannon . | . . . Launcher . | . . . Special Weapon . | . . . Impact Weapon 1 | . 1 . Slashing Weapon . | . . . Piercing Weapon . | . . . Special Melee Weapon . | . . . Unidentified Prototypes . | . . . Parts Lost 6 | . 4 2 Power 2 | . 1 1 Propulsion 1 | . 1 . Utility 3 | . 2 1 Weapon . | . . . Highest Loss Streak 2 | . 2 1 To Critical Strikes . | . . . Average Backups 5 | 4 4 5 Power . | 1 . . Propulsion 2 | 1 1 2 Utility 1 | . 1 2 Weapon . | 1 . . Tool/Special . | . . . Unused Backups 9 | . 4 5 Power 1 | . . 1 Propulsion 3 | . . 3 Utility 2 | . 1 1 Weapon 3 | . 3 . Tool/Special . | . . . Average Slot Usage (%) 82 | . 80 84 Engine 13 | . 13 14 Leg 19 | . 13 28 Wheel 8 | . 14 . Device 2 | . 4 . Storage 14 | . 14 14 Protection 9 | . 7 13 Impact Weapon 12 | . 11 14 Peak Build Rating 7 | 4 6 7 Average Rating 5 | 3 5 6 On Entrance 3 | . 4 6 Naked Turns . | . . . Heaviest Build 20 | 10 20 18 Greatest Support 26 | 26 26 20 Greatest Overweight (x) 3 | 3 1 . Average Overweight (x) . | . . . Largest Inventory Capacity 10 | 8 10 10 Average Capacity 9 | 7 9 10 Most Carried 8 | 6 8 6 Average Carried 5 | 4 4 5 Final Capacity 10 | 8 10 10 Final Carried 6 | 6 6 6 Class Distribution -------------------- 100% | Mutant Dominant Class ---------------- Mutant | -10/Materials Mutant | -10/Mines Resources | -11 -10 -10 ----------- Run | Yrd Mat Min Matter Collected 335 | 212 103 20 Remotely . | . . . Salvage Created 587 | . 478 109 Parts 31 | . 24 7 Haulers Intercepted 2 | . 2 . Recyclers Shooed 1 | . . 1 Parts Field Recycled . | . . . Retrieved Matter . | . . . Parts Self-Destructed . | . . . Prevented . | . . . Kills | -11 -10 -10 ------- Run | Yrd Mat Min Combat Hostiles Destroyed 17 | . 14 3 Melee 11 | . 10 1 Classes Destroyed 7 | . 6 1 Worker 1 | . 1 . Tunneler 1 | . . 1 Hauler 2 | . 2 . Operator 1 | . 1 . Watcher 1 | . 1 . Swarmer 12 | . 9 3 Grunt 5 | . 5 . Thug 1 | . . 1 Best Kill Streak 6 | . 6 3 Combat Bots Only 6 | . 6 3 Max Kills in Single Turn 1 | . 1 1 Gunslinging . | . . . Exploded . | . . . Melee 1 | . 1 1 Uniques/NPCs Destroyed . | . . . Combat | -11 -10 -10 -------- Run | Yrd Mat Min Hostile Shots Fired 125 | . 106 19 Missed 30 | . 29 1 Hits 95 | . 77 18 Projectile 95 | . 77 18 AOE 6 | . . 6 Critical Strikes 2 | . 1 1 Damage Taken 1020 | . 695 325 Core 261 | . 146 115 Absorbed by Shields . | . . . Core Remaining (%) 100 | 100 . . Volleys Fired . | . . . Largest . | . . . Hottest . | . . . Shots Fired . | . . . Gun . | . . . Cannon . | . . . Launcher . | . . . Special . | . . . Kinetic . | . . . Thermal . | . . . Explosive . | . . . Electromagnetic . | . . . Robot Hit Streak . | . . . Robot Miss Streak . | . . . Penetration Max . | . . . Secondary Targets . | . . . Shots Hit Robots 36 | . 28 8 Core Hits 10 | . 9 1 Critical Kills 1 | . 1 . Critical Parts Destroyed 8 | . 7 1 Critical Strikes 9 | . 8 1 Smash 9 | . 8 1 Melee Attacks 66 | . 52 14 Impact 66 | . 52 14 Slashing . | . . . Piercing . | . . . Sneak Attacks 8 | . 4 4 Combat Hostiles . | . . . Follow-up Attacks . | . . . Damage Inflicted 1124 | . 839 285 Guns . | . . . Cannons . | . . . Explosions . | . . . Melee 1124 | . 839 285 Ramming . | . . . Kinetic . | . . . Thermal . | . . . Explosive . | . . . Electromagnetic . | . . . Impact 1124 | . 839 285 Slashing . | . . . Piercing . | . . . Highest Corruption . | . . . Average Corruption . | . . . Corruption Purged . | . . . Corruption Blocked . | . . . Overload Shots . | . . . Overflow Damage 402 | . 311 91 Projectiles . | . . . Explosions . | . . . Melee 402 | . 311 91 Knockbacks 3 | . 3 . Impact 3 | . 3 . Kinetic . | . . . Secondary . | . . . Self-Inflicted Damage . | . . . Shots . | . . . Rammed . | . . . Targets Rammed . | . . . Kicked . | . . . Crushed . | . . . Highest Temperature . | . . . Average Temperature . | . . . Received Heat Transfer 114 | . 114 . Siege Activations . | . . . Martial Activations . | . . . Shielding Activations . | . . . Robots Disrupted . | . . . Combat Hostiles . | . . . Robots Corrupted 9 | . 7 2 Combat Hostiles 6 | . 4 2 Parts Fried 15 | . 12 3 Impact Corruptions 22 | . 17 5 Robots Melted . | . . . Combat Hostiles . | . . . Parts Melted . | . . . Heat Transferred . | . . . Parts Sabotaged . | . . . Parts Stolen . | . . . Parts Stripped . | . . . Power Chain Reactions . | . . . Alert | -11 -10 -10 ------- Run | Yrd Mat Min Maximum Alert Level 1 | . 1 . Low Security (%) 96 | 100 92 100 Level 1 3 | . 7 . Level 2 . | . . . Level 3 . | . . . Level 4 . | . . . Level 5 . | . . . High Security . | . . . Max Security . | . . . Peak Influence 218 | . 218 91 Initial 61 | . . 61 Average 48 | . 72 20 Influence Increases 520 | . 445 75 Destroy 0b10 Robot/C 340 | . 280 60 Destroy 0b10 Robot/NC 30 | . 25 5 Destroy Leader 66 | . 56 10 Successful Hack 18 | . 18 . Disable Machine 30 | . 30 . Destroy Structure 6 | . 6 . Lose Combat Pursuer 30 | . 30 . Influence Decreases 520 | . 288 232 Entered New Map 96 | . . 96 Time Decay 374 | . 248 126 Lost Part 50 | . 40 10 Squads Dispatched 3 | . 3 . Investigation 1 | . 1 . Extermination . | . . . Reinforcement 2 | . 2 . Assault . | . . . Garrison . | . . . Intercept . | . . . Searches Triggered . | . . . Construction Impeded . | . . . Haulers Reinforced . | . . . Active Scanning Responses . | . . . Cargo Convoy Interrupts . | . . . Stealth | -11 -10 -10 --------- Run | Yrd Mat Min Distress Signals 2 | . 2 . Communications Jammed . | . . . Distress Signals . | . . . Times Spotted 29 | . 24 5 Peak Tracking Total 8 | . 8 3 Tactical Retreats 1 | . 1 . Traps | -11 -10 -10 ------- Run | Yrd Mat Min Traps Triggered . | . . . Indirectly . | . . . Trap Hack Attempts . | . . . Triggered . | . . . Disarmed . | . . . Reprogrammed . | . . . Reused . | . . . Traps Extracted . | . . . Installed . | . . . Triggered . | . . . Machines | -11 -10 -10 ---------- Run | Yrd Mat Min Machines Disabled 2 | . 2 . Max in Single Turn 1 | . 1 . Machines Repaired . | . . . Machines Dismantled . | . . . Machines Sabotaged . | . . . Overloaded Fab Kills . | . . . Hacking | -11 -10 -10 --------- Run | Yrd Mat Min Machines Accessed 7 | . 7 . Terminals 6 | . 6 . Fabricators . | . . . Repair Stations . | . . . Recycling Units 1 | . 1 . Scanalyzers . | . . . Garrison Access . | . . . Total Hacks 13 | . 13 . Successful 6 | . 6 . Failed 7 | . 7 . Catastrophic 1 | . 1 . Database Lockouts . | . . . Manual 2 | . 2 . Terminals 12 | . 12 . Fabricators . | . . . Repair Stations . | . . . Recycling Units 1 | . 1 . Scanalyzers . | . . . Garrison Access . | . . . Terminal Hacks 5 | . 5 . Robot Analysis 1 | . 1 . Branch Access Points 1 | . 1 . Locate Traps 1 | . 1 . Hauler Manifests 2 | . 2 . Fabricator Hacks . | . . . Repair Station Hacks . | . . . Recycling Unit Hacks 1 | . 1 . Report Inventory 1 | . 1 . Scanalyzer . | . . . Garrison Access Hacks . | . . . Unauthorized Hacks . | . . . Terminals . | . . . Fabricators . | . . . Repair Stations . | . . . Recycling Units . | . . . Scanalyzers . | . . . Garrison Access . | . . . Data Cores Recovered . | . . . Used . | . . . Hacking Detections 6 | . 6 . Full Trace Events . | . . . Feedback Events . | . . . Feedback Blocked . | . . . Robot Schematics Acquired . | . . . Robots Built . | . . . Authchips . | . . . Time . | . . . Total Robot Build Rating . | . . . Part Schematics Acquired . | . . . Parts Built . | . . . Authchips . | . . . Time . | . . . Total Part Build Rating . | . . . Parts Repaired . | . . . Time . | . . . Parts Recycled . | . . . Recycled Matter . | . . . Retrieved Matter . | . . . Retrieved Components . | . . . Parts Scanalyzed . | . . . Part Schematics Acquired . | . . . Parts Damaged . | . . . Bothacking | -11 -10 -10 ------------ Run | Yrd Mat Min Used RIF Installer . | . . . Robots Hacked . | . . . Non-combat . | . . . Combat . | . . . Robot Hacks Applied . | . . . Relay Couplers Released . | . . . Fabnet Peak Effective % . | . . . Robots Rewired . | . . . Allies Hacked . | . . . Hacks Repelled . | . . . Allies | -11 -10 -10 -------- Run | Yrd Mat Min Total Allies 2 | . . 2 Largest Group 2 | . . 2 Highest-Rated Group 49 | . . 49 Highest-Rated Ally 31 | . . 31 Total Orders . | . . . Ally Attacks 1 | . . 1 Total Damage 21 | . . 21 Kills . | . . . Allies Corrupted . | . . . Allies Melted . | . . . Intel | -11 -10 -10 ------- Run | Yrd Mat Min Active Infowar (turns) 302 | . 277 25 Seismic 302 | . 277 25 Robot Analysis Total 1 | . 1 . Derelict Logs Recovered 2 | . . 2 Drone Launches . | . . . Drone Recoveries . | . . . Exploration | -11 -10 -10 ------------- Run | Yrd Mat Min Turns Passed 1496 | 81 840 575 Spaces Moved 1132 | 56 636 440 Core 17 | 17 . . Treads . | . . . Legs 720 | . 280 440 Wheels 395 | 39 356 . Hover . | . . . Flight . | . . . Fastest Speed 50 | 50 90 120 Average Speed 109 | 96 103 120 Slowest Speed 200 | 200 120 120 Overloaded Moves . | . . . Propulsion Burnouts . | . . . Robots Hopped . | . . . Potential Cave-ins . | . . . Cave-ins Triggered . | . . . Exploration Rate (%) 60 | 3 98 80 Regions Visited 2 Branch Regions 1 Pre-discovered Areas . | . . . Known Exits Taken 1 | . 1 . Unknown Exits Taken 1 | 1 . . Scrap Searched . | . . . Spaces Dug 6 | . 6 . Terrain Destroyed 6 | . 6 . Melee 6 | . 6 . Projectile . | . . . AOE . | . . . Terrain Rammed . | . . . Walls Destroyed . | . . . Machines Disabled . | . . . Actions | -11 -10 -10 --------- Run | Yrd Mat Min Total 1274 | 82 729 463 Wait 31 | 13 15 3 Move 1130 | 55 635 440 Hop . | . . . Pick Up 24 | 10 12 2 Fast Attach . | . . . Attach 12 | 4 7 1 Detach . | . . . Swap 4 | . 2 2 Drop 7 | . 6 1 Fire . | . . . Melee 66 | . 52 14 Ram . | . . . Kick . | . . . Crush . | . . . Escape Stasis . | . . . Rewire . | . . . Trap . | . . . Miscellaneous . | . . . Route ------- -11/Scrapyard -10/Materials (discovered 4 exits: [*Mat x3] / *Min) -10/Mines (discovered 1 exit: [*Mat]) History --------- Turn | Location | Event 44 | -11/Scrapyard | Discovered new exit (range 14) 82 | -11/Scrapyard | Entered Materials 163 | -10/Materials | Discovered new exit (range 6) 248 | -10/Materials | Identified exit to Mines 305 | -10/Materials | Build established: Mutant 350 | -10/Materials | Discovered new exit (range 10) 374 | -10/Materials | Discovered new exit (range 15) 447 | -10/Materials | Discovered new exit (range 16) 682 | -10/Materials | Derelicts attacked the area 689 | -10/Materials | Core integrity fell below 50% 922 | -10/Materials | Entered Mines 924 | -10/Mines | Met a Derelict bent on vengeance 926 | -10/Mines | Learned Materials security intel 1116 | -10/Mines | Found a hidden stash of uninstalled traps 1124 | -10/Mines | Received a Mining Laser from a helpful Derelict 1318 | -10/Mines | Discovered new exit (range 10) 1453 | -10/Mines | Learned Materials emergency access door positions 1459 | -10/Mines | Assembled infested the area 1496 | -10/Mines | Core integrity fell below 20% 1497 | -10/Mines | Destroyed by D-53 Grenadier with Mini Grenade Launcher Last Messages --------------- 01288_ K-01 Serf collects debris. 01312_ Sneak attack on R-06 Scavenger. 01312_ Destroyed Tractor Beam. 01312_ R-06 Scavenger system corrupted by crushing effect. 01318_ EXIT=FOUND 01320_ Sneak attack on T-07 Excavator. 01446_ A pair of derelicts emerge from the shadows: "We're, um, lost. You wouldn't happen to know the way out of here, would you?" 01453_ Acquired derelict log, extracted data. Data stored: Materials emergency access points. 01459_ ALERT: Infestation in the mines, dispatching Demolisher response squad. 01493_ C-30 ARC bursts open, deploying its payload. 01493_ D-53 Grenadier unfolds itself. 01495_ HV-5KJ(g) destroyed. 01496_ The unstable cave ceiling collapses. 01497_ Lgt. Ion Engine destroyed. Map ----- +----------------------------------------------------+ | ?# #??????????????# ### #?? | | ??# ##??????????????## #??? | | ???##????????????###?## #???? | | #######?????????## ##?# ####???? | | ########### #?# ##??????? | | #### %% #### ##???????? | | ???# ########### < #?#### ##???????? | | ???# #????????## ########## #???????? | | ???# ???????## #???## #???????? | | ??? ??????# #### #???## #???????? | | ?? ?????# ##??# ##### #???????? | | ? ????# #???# ## ##???????? | | #???# #???# # ##????????? | | #???# #???# ####?####?? | | ???## #???# ### ##? | | # ???## ##???# ## #? | | # #???###????# #### #? | | ## ????????????###??## ##? | | ??## ###??? #?????????####??### ##?? | | ????##?????? ??????## ##???## ##??? | | ????????????# ???## ##???#### ##???? | | ?????????????# ### ##?????## #????? | | ??????????????# ##?????# #????? | | ???????????????# %d #?????# #????? | | ????????????????# d ####### #????? | | ???????????????????# @ ## #????? | | ???????????????????### ## #????? | | ?????????????????????# ## #####????? | | ?????????????????????# % ### #????????? | | ?????????????????????## # ##?# #????????? | | ????????????############# ##??# #????????? | | ????????????# z #???# #????????? | | ????????????# ##############???# #????????? | | ???????????## ########?????????# #????????? | | ???????????# #?????????# #????????? | | ???????????# #?####????# #????????? | | ???????????# ### ##???# #????????? | | ???????????# """ """ ## ##??# #????????? | | ???????????# """ """ ## #??# #????????? | | ???????????# """ """ ## #### #????????? | | ???????????# #????????? | | ???????????# ### #????????? | | ???????????###########?############????????? | | ???????????????????????????????????????????? | | ???????????????????????????????????????????? | | ???????????????????????????????????????????? | | | | | | | | | +----------------------------------------------------+ Best States ------------- Heat Dissipation 25 Energy Generation 10 Energy Capacity 250 Matter Stores 300 Matter Capacity 300 Sight Range 16 Terrain Scan Density 10 Armor Coverage 150 Weapon Shielding 33 Evasion (%) 55 Item Schematics ----------------- None Robot Schematics ------------------ None Fabricated ------------ Nothing Repaired ---------- Nothing Alien Tech Used ----------------- None Achievements -------------- None Challenges ------------ None Game ------ Seed TeleporterChargeLog Manual? 0 Play Time 00:17:38 Cumulative 11.0 hours Start 2025.09.16 @ 21:24:20 End 2025.09.16 @ 21:39:02 Sessions 1 Manual Loads 0 Difficulty Rogue Special Mode None Game No. 35 Rogue 35 Adventurer 0 Explorer 0 Win Type - Total 0 Types 0/0/0/0/0/0/0/0/0/0 Lore% 19 Gallery% 11 Achievement% 16 Wizard Run 0 Options --------- Layout 2 ASCII 0 Keyboard 0 Movement Mouse Keybinds 0 Fullscreen 1 Font 24/Smallcaps Map View 50x44 Zoom Use 0% Tactical HUD 1 Map Filters NONE Filters NONE Steam 1 RUN: 29cf68ec-3c84-473e-897a-6e8da1739090